[Event "Chessable English Womens-ch 2022"]
[Site "Kenilwoth"]
[Date "2022.05.22"]
[Round "7.2"]
[White "Yao, Lan"]
[Black "Sengenberger, Sara"]
[Result "1-0"]
[ECO "B27"]
[WhiteElo "2276"]
[BlackElo "1435"]
[Annotator "TA"]
[PlyCount "115"]
[EventDate "2022.05.18"]
[EventType "swiss"]
[EventCountry "ENG"]
[SourceTitle "playchess.com"]
[Source "ChessBase"]
[SourceQuality "1"]
[TimeControl "5400+30"]

{[%evp 11,115,14,33,34,43,35,53,53,47,30,135,23,42,18,34,9,2,0,12,12,16,17,99,78,99,95,98,91,111,90,105,50,64,63,59,40,33,27,39,16,50,41,31,31,110,119,111,113,116,91,106,66,93,75,88,83,116,59,62,64,89,93,98,100,120,135,121,78,237,226,248,241,418,415,393,385,545,543,543,520,689,581,1022,1014,1463,1351,5626,5497,29971,29972,29972,29973,29971,29972,29970,29971,29975,29976,29976,29977,29981,29979,29978,29979,29981,29979]} 1. e4 {[%emt 0:00:02]} c5 {[%emt 0:00:09]} 2. Nf3 {[%emt 0:00:04]} g6 {[%emt 0:00:19]} 3. c3 {[%emt 0:00:08]} Bg7 {[%emt 0:00:25]} 4. d4 {[%emt 0:00:08]} cxd4 {[%emt 0:00:26]} 5. cxd4 {[%emt 0:00:04]} d5 {[%emt 0:01:22]} 6. e5 {[%emt 0:00:13]} Nc6 {[%emt 0:01:01]} 7. Bb5 $1 {[%emt 0:02:26][%mdl 4] outshines the older 7.Nc3. B27: Sicilian: 2 Nf3, unusual Black 2nd moves.} Bd7 {[%emt 0:00:45][%cal Oc6e5]} 8. Nc3 {[%emt 0:00:55]} a6 {[%emt 0:02:45]} 9. Ba4 {[%emt 0:04:50] White is slightly better.} e6 {[%emt 0:01:55]} 10. O-O {[%emt 0:01:19] [#]} (10. h4) 10... f6 $146 {[%emt 0:01:44]} (10... Nge7 11. Bc2 h6 12. b3 O-O 13. Bb2 b5 14. Qd2 Qb6 15. Ne2 Rfc8 16. h4 Qa5) (10... Nge7 $11 {remains equal.}) ({Predecessor:} 10... Nge7 11. Bc2 h6 12. b3 O-O 13. Bb2 b5 14. Qd2 Qb6 15. Ne2 Rfc8 16. h4 Qa5 {1-0 (41) Breder,D (2461)-Koop,T (2418) Austria 2015}) 11. exf6 {[%emt 0:01:26]} (11. Re1 $1 $16) 11... Nxf6 $11 {[%emt 0:00:42]} 12. Bg5 {[%emt 0:05:31]} O-O {[%emt 0:01:19]} 13. Qd2 {[%emt 0:03:03]} (13. Bxc6 $5 Bxc6 14. Qd2 $11) 13... b5 {[%emt 0:03:55]} 14. Bc2 {[%emt 0:00:26]} Qb6 {[%emt 0:01:13]} 15. Rad1 {[%emt 0:04:35]} Rae8 {[%emt 0:09:20]} (15... b4 $5 {[%cal Rb4c3]} 16. Na4 Qc7 $11) 16. Bh6 {[%emt 0:07:42]} e5 {[%emt 0:09:22]} (16... Qb8 $11 {keeps the balance.} 17. Bxg7 Kxg7) 17. dxe5 $16 {[%emt 0:09:31]} Nxe5 {[%emt 0:03:00]} 18. Nxe5 {[%emt 0:01:32]} (18. Nxd5 $6 Nxd5 19. Bb3 (19. Qxd5+ Be6 $17) 19... Nxf3+ 20. gxf3 Bxh6 21. Qxh6 Be6 $1 22. Bxd5 Bxd5 23. Rxd5 Qe6 $11) 18... Rxe5 {[%emt 0:01:10]} 19. Be3 {[%emt 0:02:55]} Qb7 {[%emt 0:03:28]} 20. Bd4 {[%emt 0:02:16]} Ree8 {[%emt 0:02:24]} 21. Bxf6 {[%emt 0:03:52]} (21. b4 $16) 21... Bxf6 $14 {[%emt 0:01:27]} 22. Nxd5 {[%emt 0:00:29]} Bg7 {[%emt 0:06:26]} 23. f3 {[%emt 0:09:03]} Kh8 {[%emt 0:00:52]} 24. Be4 {[%emt 0:02:21]} Bc6 {[%emt 0:01:58]} 25. Nc3 {[%emt 0:04:52]} Qb6+ {[%emt 0:04:34]} 26. Kh1 {[%emt 0:01:29]} Rd8 {[%emt 0:04:47]} 27. Qc2 {[%emt 0:04:26]} Bxe4 {[%emt 0:01:58]} (27... b4 $14 28. Nd5 Qb5) 28. Nxe4 $16 {[%emt 0:00:41]} ({But not} 28. fxe4 $6 Rxf1+ 29. Rxf1 Qc5 $11) 28... Rxd1 {[%emt 0:01:04]} 29. Rxd1 {[%emt 0:00:08]} (29. Qxd1 $6 Bxb2 30. Qd2 Bg7 $11) 29... Rd8 {[%emt 0:02:24]} 30. Re1 {[%emt 0:05:39]} h6 {[%emt 0:01:21]} 31. b4 {[%emt 0:04:04]} Re8 {[%emt 0:01:49]} 32. Rc1 {[%emt 0:01:48]} Qe6 {[%emt 0:05:19]} 33. Qd2 {[%emt 0:03:22]} Rc8 {[%emt 0:00:57]} 34. Nc5 {[%emt 0:01:06]} (34. Rc5 $16) 34... Qf6 {[%emt 0:01:59]} 35. Rd1 {[%emt 0:01:23]} Kh7 {[%emt 0:04:32]} 36. Qd7 {[%emt 0:00:40]} Qc6 {[%emt 0:01:06]} 37. h3 {[%emt 0:04:35] Black must now prevent Ne6. White is much more active.} Qxd7 {[%emt 0:02:40]} 38. Rxd7 {[%emt 0:00:05][%mdl 4096] Endgame KRB-KRN} (38. Nxd7 $6 Rc2 $11) 38... Kg8 {[%emt 0:00:40][%cal Oa6a5]} 39. f4 {[%emt 0:02:04]} ({Don't play} 39. Nxa6 $6 Rc1+ 40. Kh2 Be5+ 41. g3 (41. f4 Bxf4+ 42. g3 Rc2+ 43. Kg1 Bxg3 $15) 41... Rc2+ 42. Kg1 Bxg3 $11) 39... Rc6 $2 {[%emt 0:00:56] [#] Loses the game.} (39... a5 $16) 40. Ra7 $1 $18 {[%emt 0:01:22]} Bc3 {[%emt 0:00:29]} 41. Rxa6 {[%emt 0:00:45]} Rxa6 {[%emt 0:00:46]} (41... Rc8 42. Rxg6+ Kh7) 42. Nxa6 {[%emt 0:00:02] KB-KN} Kf7 {[%emt 0:00:22]} 43. Kh2 {[%emt 0:00:50]} Kf6 {[%emt 0:00:22]} (43... Be1 $142 44. g3 Ke8 45. Nc7+ Kd7) 44. Kg3 {[%emt 0:01:37]} Kf5 {[%emt 0:01:05]} 45. Kf3 {[%emt 0:00:09] Strongly threatening Nc7.} Bd2 {[%emt 0:00:40]} 46. g4+ {[%emt 0:00:14]} Kf6 {[%emt 0:00:20]} 47. Nc7 {[%emt 0:00:55]} h5 {[%emt 0:00:47]} 48. a3 {[%emt 0:00:47][%cal Ba2a3,Ba3a4,Ba4a5,Ba5a6][%mdl 32]} hxg4+ {[%emt 0:00:14]} 49. hxg4 {[%emt 0:00:02] Threatening mate with Ke4.} Ke7 {[%emt 0:01:36]} 50. Nxb5 {[%emt 0:00:42] White mates.} Bc1 {[%emt 0:00:12]} 51. a4 {[%emt 0:01:06]} Bd2 {[%emt 0:00:29]} 52. Nd4 {[%emt 0:00:20]} Kd6 {[%emt 0:00:28]} 53. Nc2 {[%emt 0:01:25]} Kd5 {[%emt 0:00:22]} 54. a5 {[%emt 0:00:40]} Kc6 {[%emt 0:01:24]} 55. Ke4 {[%emt 0:00:15]} Kb5 {[%emt 0:00:45]} 56. Ke5 {[%emt 0:00:20]} Bc3+ {[%emt 0:00:54]} 57. Ke6 {[%emt 0:00:06]} Kc4 {[%emt 0:00:55]} 58. a6 {[%emt 0:00:19] Weighted Error Value: White=0.15 (very precise) /Black=0.49} 1-0

[Event "Chessable English Womens-ch 2022"]
[Site "Kenilwoth"]
[Date "2022.05.22"]
[Round "7.3"]
[White "Subramanian, Anusha"]
[Black "Catabay, Mae Katelyn Rose"]
[Result "0-1"]
[ECO "E61"]
[WhiteElo "1671"]
[BlackElo "1321"]
[Annotator "NA RC COMBH"]
[PlyCount "80"]
[EventDate "2022.05.18"]
[EventType "swiss"]
[EventCountry "ENG"]
[SourceTitle "playchess.com"]
[Source "ChessBase"]
[SourceQuality "1"]
[TimeControl "5400+30"]

1. d4 {[%emt 0:00:02]} Nf6 {[%emt 0:00:07]} 2. c4 {[%emt 0:00:04]} g6 {[%emt 0:00:17]} 3. Nc3 {[%emt 0:00:07]} Bg7 {[%emt 0:00:14]} 4. Nf3 {[%emt 0:00:06]} d6 {[%emt 0:00:21]} 5. e3 {[%emt 0:00:31]} Nbd7 {[%emt 0:01:04]} 6. Be2 {[%emt 0:01:57]} O-O {[%emt 0:01:56]} 7. O-O {[%emt 0:01:02]} Re8 {[%emt 0:03:34]} 8. b3 {[%emt 0:03:27]} c5 {[%emt 0:05:32]} 9. Bb2 {[%emt 0:01:32]} a6 {[%emt 0:04:17]} 10. Rc1 {[%emt 0:04:29]} b6 {[%emt 0:05:32]} 11. Qc2 {[%emt 0:03:18]} Bb7 {[%emt 0:03:57]} 12. d5 {[%emt 0:02:45]} e5 {[%emt 0:02:55]} 13. Nd2 {[%emt 0:07:49]} Nf8 {[%emt 0:04:31]} 14. Bd3 {[%emt 0:06:56]} Bc8 {[%emt 0:06:51]} 15. Ne2 {[%emt 0:07:04]} Ng4 {[%emt 0:04:25]} 16. h3 {[%emt 0:03:43]} Nh6 {[%emt 0:00:31]} 17. e4 {[%emt 0:02:40]} f5 {[%emt 0:06:28]} 18. f4 {[%emt 0:02:26]} Bd7 {[%emt 0:46:58]} 19. a4 {[%emt 0:01:48]} Ra7 {[%emt 0:00:00]} 20. Nf3 {[%emt 0:02:01]} Bc8 {[%emt 0:00:00]} 21. Bc3 {[%emt 0:06:33]} Rae7 {[%emt 0:00:00]} 22. fxe5 {[%emt 0:06:57]} dxe5 {[%emt 0:00:00]} 23. Bd2 {[%emt 0:04:04]} f4 {[%emt 0:00:00]} 24. Kh2 {[%emt 0:03:08]} Rf7 {[%emt 0:00:00]} 25. g3 {[%emt 0:06:00]} g5 {[%emt 0:00:00]} 26. Nfg1 {[%emt 0:08:32]} Ng6 {[%emt 0:00:00]} 27. Qd1 {[%emt 0:02:43]} Ref8 {[%emt 0:00:00]} 28. Bb1 {[%emt 0:05:59]} f3 {[%emt 0:01:40]} 29. Nc3 {[%emt 0:01:02]} f2 {[%emt 0:00:32]} 30. Nge2 {[%emt 0:00:52]} Qd7 {[%emt 0:00:19]} 31. Nf4 {[%emt 0:04:00]} exf4 {[%emt 0:01:11]} 32. g4 {[%emt 0:00:39]} Qd6 {[%emt 0:00:30]} 33. Rxf2 {[%emt 0:01:24]} f3+ {[%emt 0:00:08]} 34. Kh1 {[%emt 0:00:15]} Qg3 {[%emt 0:00:24]} 35. Qf1 {[%emt 0:00:41]} Bd4 {[%emt 0:00:17]} 36. Rh2 {[%emt 0:00:36]} Nh4 {[%emt 0:01:25]} 37. Nd1 {[%emt 0:00:43]} f2 {[%emt 0:00:21]} 38. Nxf2 {[%emt 0:01:00]} Rxf2 {[%emt 0:00:17]} 39. Rxf2 {[%emt 0:00:29]} Rxf2 {[%emt 0:00:07]} 40. Qg1 {[%emt 0:00:33]} Qxh3+ {[%emt 0:03:49]} 0-1

[Event "Chessable English Womens-ch 2022"]
[Site "Kenilwoth"]
[Date "2022.05.22"]
[Round "7.4"]
[White "Mohan, Meghana"]
[Black "Pert, Nina"]
[Result "0-1"]
[ECO "B12"]
[WhiteElo "1613"]
[BlackElo "1620"]
[Annotator "NA RC COMBH"]
[PlyCount "20"]
[EventDate "2022.05.18"]
[EventType "swiss"]
[EventCountry "ENG"]
[SourceTitle "playchess.com"]
[Source "ChessBase"]
[SourceQuality "1"]
[TimeControl "5400+30"]

1. e4 {[%emt 0:00:30]} c6 {[%emt 0:00:04]} 2. d4 {[%emt 0:00:20]} d5 {[%emt 0:00:05]} 3. e5 {[%emt 0:00:40]} Bf5 {[%emt 0:01:01]} 4. h4 {[%emt 0:01:21]} c5 {[%emt 0:01:39]} 5. dxc5 {[%emt 0:01:54]} Nc6 {[%emt 0:01:51]} 6. Qh5 {[%emt 0:02:46]} e6 {[%emt 0:01:33]} 7. Qe2 {[%emt 0:01:32]} Nd4 {[%emt 0:00:34]} 8. Qd1 {[%emt 0:00:53]} Nxc2+ {[%emt 0:00:42]} 9. Kd2 {[%emt 0:00:26]} Qa5+ {[%emt 0:02:32]} 10. Nc3 {[%emt 0:01:36]} Nxa1 {[%emt 1:25:29]} 0-1

[Event "Chessable English Womens-ch 2022"]
[Site "Kenilwoth"]
[Date "2022.05.22"]
[Round "7.5"]
[White "Milewska, Agnieszka"]
[Black "Oh, Julie"]
[Result "1/2-1/2"]
[ECO "E10"]
[WhiteElo "1677"]
[BlackElo "1373"]
[Annotator "NA RC COMBH"]
[PlyCount "64"]
[EventDate "2022.05.18"]
[EventType "swiss"]
[EventCountry "ENG"]
[SourceTitle "playchess.com"]
[Source "ChessBase"]
[SourceQuality "1"]
[TimeControl "5400+30"]

1. d4 {[%emt 0:00:03]} e6 {[%emt 0:00:08]} 2. c4 {[%emt 0:00:04]} c5 {[%emt 0:00:29]} 3. e3 {[%emt 0:00:07]} Nf6 {[%emt 0:00:23]} 4. Nc3 {[%emt 0:00:06]} a6 {[%emt 0:00:18]} 5. Nf3 {[%emt 0:00:13]} Be7 {[%emt 0:01:37]} 6. g3 {[%emt 0:00:56]} cxd4 {[%emt 0:01:55]} 7. Nxd4 {[%emt 0:01:05]} Qc7 {[%emt 0:03:13]} 8. Qb3 {[%emt 0:04:15]} Nc6 {[%emt 0:01:52]} 9. Be2 {[%emt 0:03:12]} Bb4 {[%emt 0:05:13]} 10. O-O {[%emt 0:01:04]} Bxc3 {[%emt 0:01:50]} 11. Qxc3 {[%emt 0:03:12]} h5 {[%emt 0:04:17]} 12. b4 {[%emt 0:03:40]} b6 {[%emt 0:04:56]} 13. Bf3 {[%emt 0:00:43]} Bb7 {[%emt 0:01:15]} 14. Nxc6 {[%emt 0:01:07]} Bxc6 {[%emt 0:00:53]} 15. Bxc6 {[%emt 0:00:06]} Qxc6 {[%emt 0:00:23]} 16. Bb2 {[%emt 0:02:09]} h4 {[%emt 0:13:47]} 17. f3 {[%emt 0:02:11]} hxg3 {[%emt 0:03:49]} 18. hxg3 {[%emt 0:01:03]} Rh6 {[%emt 0:05:01]} 19. e4 {[%emt 0:02:30]} O-O-O {[%emt 0:04:34]} 20. Kg2 {[%emt 0:03:20]} Rdh8 {[%emt 0:05:43]} 21. Rh1 {[%emt 0:00:02]} Rxh1 {[%emt 0:22:12]} 22. Rxh1 {[%emt 0:00:01]} Rxh1 {[%emt 0:00:10]} 23. Kxh1 {[%emt 0:00:05]} Qd6 {[%emt 0:01:16]} 24. Kg2 {[%emt 0:04:16]} Qd1 {[%emt 0:03:07]} 25. Qd4 {[%emt 0:08:55]} Qe2+ {[%emt 0:02:05]} 26. Qf2 {[%emt 0:00:02]} Qxc4 {[%emt 0:01:41]} 27. Bxf6 {[%emt 0:00:56]} gxf6 {[%emt 0:00:10]} 28. Qxb6 {[%emt 0:00:38]} Qxa2+ {[%emt 0:00:44]} 29. Kh3 {[%emt 0:00:57]} Qc4 {[%emt 0:02:39]} 30. Qd6 {[%emt 0:01:06]} Qc6 {[%emt 0:03:55]} 31. Qf8+ {[%emt 0:00:02]} Kc7 {[%emt 0:00:24]} 32. Qxf7 {[%emt 0:00:17]} e5 {[%emt 0:00:43]} 1/2-1/2